bitfinex/quotes_ETHUSD_20241130
["timestamp","ask_amount","ask_price","bid_price","bid_amount"]
[1732970361854,7.77,3669.6,3669.5,7.5027957]
[1732970363453,8.88,3669.6,3669.5,7.5027957]
[1732970365167,9.99,3669.6,3669.5,7.5027957]
[1732970366726,11.1,3669.6,3669.5,7.5027957]
[1732970368324,12.21,3669.6,3669.5,7.5027957]
[1732970368956,12.21,3669.6,3669.5,5.8922957]
[1732970369943,13.32,3669.6,3669.5,5.8922957]
[1732970371671,14.43,3669.6,3669.5,5.8922957]
[1732970373534,15.54,3669.6,3669.5,5.8922957]
[1732970375985,16.65,3669.6,3669.5,5.8922957]
[1732970376600,16.65,3669.6,3669.5,5.7922957]
[1732970376874,19.37583547,3669.6,3669.5,5.7922957]
[1732970377244,19.37583547,3669.6,3669.5,5.72516]
[1732970377474,16.65,3669.6,3669.5,5.82516]
[1732970377773,17.76,3669.6,3669.5,5.89216048]
[1732970377951,17.76,3669.6,3669.5,5.79216048]
[1732970379150,18.87,3669.6,3669.5,5.79216048]
[1732970380339,20.4668,3669.6,3669.5,2.79216048]
[1732970380539,23.19263547,3669.6,3669.5,2.72516]
[1732970380853,24.30263547,3669.6,3669.5,2.72516]
[1732970382180,24.30263547,3669.6,3669.5,5.72516]
[1732970382480,25.41263547,3669.6,3669.5,5.72516]
[1732970383958,26.52263547,3669.6,3669.5,5.72516]
[1732970385647,27.63263547,3669.6,3669.5,5.72516]
[1732970387598,28.74263547,3669.6,3669.5,5.72516]
[1732970389060,29.85263547,3669.6,3669.5,5.72516]
[1732970389529,28.25583547,3669.6,3669.5,5.72516]
[1732970390806,29.36583547,3669.6,3669.5,5.72516]
[1732970392271,30.47583547,3669.6,3669.5,5.72516]
[1732970393987,31.58583547,3669.6,3669.5,5.72516]
[1732970396518,32.69583547,3669.6,3669.5,5.72516]
[1732970398118,33.80583547,3669.6,3669.5,5.72516]
[1732970398850,2.82544,3669.2,3668.3,0.1]
[1732970399135,0.94127879,3668.4,3668.3,2.72605]
[1732970399624,2.05127879,3668.4,3668.3,2.78501255]
[1732970400899,2.05127879,3668.4,3668.3,0.05896255]
[1732970401111,4.80827879,3668.4,3668.1,2.72617]
[1732970401286,0.94127879,3668.2,3668.1,2.72617]
[1732970401483,2.58827879,3668.2,3668.1,2.72617]
[1732970402046,2.58827879,3668.2,3667.1,2.82688]
[1732970402329,1.647,3668.0,3667.3,2.72678]
[1732970402488,0.1747,3667.9,3667.5,2.72659]
[1732970402889,1.2847,3667.9,3667.5,2.72659]
[1732970403314,0.94127879,3667.6,3667.5,2.72659]
[1732970403625,1.647,3667.5,3667.4,2.72671]
[1732970403830,2.58827879,3667.5,3667.4,2.72671]
[1732970404126,2.58827879,3667.5,3667.2,2.72684]
[1732970404127,2.84710667,3667.5,3667.2,2.72684]
[1732970404327,0.94127879,3667.2,3667.1,2.72693]
[1732970405774,1.11,3667.5,3667.4,2.82672]
[1732970406062,1.11,3667.5,3667.4,5.82672]
[1732970406213,2.22,3667.5,3667.4,5.82672]
[1732970407916,3.33,3667.5,3667.4,5.82672]
[1732970408621,3.33,3667.5,3667.4,5.88404375]
[1732970409747,4.44,3667.5,3667.4,5.88404375]
[1732970410338,1e-05,3667.5,3667.4,5.88404375]
[1732970410517,1e-05,3667.5,3667.4,7.37532254]
[1732970410716,1.11,3667.9,3667.8,2.72643]
[1732970410917,1.11,3667.9,3667.8,5.78397961]
[1732970411117,1.11,3667.9,3667.8,5.88397961]
[1732970411342,1.632,3668.9,3667.8,5.88397961]
[1732970411343,1.632,3668.9,3668.3,2.72605]
[1732970411566,1.632,3668.9,3668.3,5.78342713]
[1732970413054,3.33,3668.4,3668.3,5.78342713]
[1732970414849,4.44,3668.4,3668.3,5.78342713]
[1732970416595,5.55,3668.4,3668.3,5.78342713]
[1732970418211,6.66,3668.4,3668.3,7.33832713]
[1732970419854,7.77,3668.4,3668.3,7.33832713]
[1732970420201,7.77,3668.4,3668.3,5.78342713]
[1732970421539,8.88,3668.4,3668.3,5.78342713]
[1732970423045,9.99,3668.4,3668.3,5.78342713]
[1732970424842,11.1,3668.4,3668.3,5.78342713]
[1732970426316,12.21,3668.4,3668.3,5.78342713]
[1732970428077,13.32,3668.4,3668.3,5.78342713]
[1732970429383,14.9735,3668.4,3668.3,2.78342713]
[1732970429872,16.0835,3668.4,3668.3,2.78342713]
[1732970430046,16.43366313,3668.4,3668.3,2.78342713]
[1732970431335,16.0835,3668.4,3668.3,2.78342713]
[1732970431564,17.1935,3668.4,3668.3,2.78342713]
[1732970431937,17.1935,3668.4,3668.3,2.811462]
[1732970432538,15.54,3668.4,3668.3,2.811462]
[1732970433155,16.65,3668.4,3668.3,2.811462]
[1732970434643,17.76,3668.4,3668.3,2.811462]
[1732970436582,18.87,3668.4,3668.3,2.811462]
[1732970438150,19.98,3668.4,3668.3,2.811462]
[1732970439873,21.09,3668.4,3668.3,2.811462]
[1732970440075,22.93331776,3668.4,3668.3,2.811462]
[1732970440397,24.48681776,3668.4,3668.3,2.811462]
[1732970441509,26.53809655,3668.4,3668.3,2.811462]
[1732970441803,26.53809655,3668.4,3668.3,2.72605]
[1732970441972,1.5535,3668.3,3668.0,2.72621]
[1732970442176,4.20730965,3668.3,3668.2,2.72613]
[1732970442357,4.20730965,3668.3,3668.2,2.81155427]
[1732970443198,5.31730965,3668.3,3668.2,2.81155427]
[1732970444812,6.42730965,3668.3,3668.2,2.81155427]
[1732970446365,7.53730965,3668.3,3668.2,2.81155427]
[1732970448103,8.64730965,3668.3,3668.2,2.81155427]
[1732970449700,9.75730965,3668.3,3668.2,2.81155427]
[1732970451403,10.86730965,3668.3,3668.2,2.81155427]
[1732970453019,11.97730965,3668.3,3668.2,2.81155427]
[1732970454695,13.08730965,3668.3,3668.2,2.81155427]
[1732970456332,14.19730965,3668.3,3668.2,2.81155427]
[1732970456635,14.19730965,3668.3,3668.2,2.72613]
[1732970457023,9.99,3668.3,3668.2,2.80888479]
[1732970457839,11.1,3668.3,3668.2,2.80888479]
[1732970458769,11.1,3668.3,3668.2,5.80888479]
[1732970459469,12.21,3668.3,3668.2,5.80888479]
[1732970460472,12.21,3668.3,3668.2,8.26088479]
[1732970460473,5.39493,3668.3,3668.2,8.26088479]
[1732970461038,6.50493,3668.3,3668.2,8.26088479]
[1732970461471,21.88998,3668.4,3668.3,5.99845]
[1732970461691,21.88998,3668.4,3668.3,8.66932879]
[1732970461989,21.88998,3668.4,3668.3,8.75186569]
[1732970462683,20.274,3668.4,3668.3,8.75186569]
[1732970462888,16.18503,3668.4,3668.3,8.75186569]
[1732970463759,9.37008,3668.4,3668.3,8.75186569]
[1732970463962,9.37008,3668.4,3668.3,9.30186569]
[1732970464175,9.66496497,3668.4,3668.3,10.86730315]
[1732970464382,2.85001497,3668.4,3668.3,10.86730315]
[1732970464687,2.85001497,3668.4,3668.3,9.65362436]
[1732970464929,2.85001497,3668.4,3668.3,10.79775307]
[1732970465467,0.12403497,3668.4,3668.3,10.79775307]
[1732970465653,4.97e-06,3668.4,3668.3,10.4614341]
[1732970465855,4.97e-06,3668.4,3668.3,10.79775307]
[1732970466179,31.08,3669.6,3669.5,7.45476]
[1732970466584,31.08,3669.6,3669.5,7.53682733]
[1732970467453,32.19,3669.6,3669.5,7.53682733]
[1732970469418,33.3,3669.6,3669.5,7.45476]
[1732970470924,34.41,3669.6,3669.5,7.45476]
[1732970472596,35.52,3669.6,3669.5,7.45476]
[1732970472790,35.52,3669.6,3669.5,5.82516]
[1732970474282,36.63,3669.6,3669.5,5.82516]
[1732970475827,36.63,3669.6,3669.5,5.72516]
[1732970476029,37.74,3669.6,3669.5,5.72516]
[1732970477538,37.74,3669.6,3669.5,5.82516]
[1732970477704,38.85,3669.6,3669.5,5.82516]
[1732970479437,39.96,3669.6,3669.5,5.82516]
[1732970479807,39.96,3669.6,3669.5,7.36336]
[1732970481435,41.07,3669.6,3669.5,7.36336]
[1732970483239,42.18,3669.6,3669.5,7.36336]
[1732970484427,42.18,3669.6,3669.5,7.91336]
[1732970484834,43.29,3669.6,3669.5,8.93592022]
[1732970485293,43.29,3669.6,3669.5,8.85411956]
[1732970486522,44.4,3669.6,3669.5,8.85411956]
[1732970487042,38.9498,3669.6,3669.5,9.79487912]
[1732970487500,36.2247,3669.6,3669.5,9.87652323]
[1732970487646,33.4996,3669.6,3669.5,9.87652323]
[1732970488145,34.6096,3669.6,3669.5,8.93576367]
[1732970488452,31.8845,3669.6,3669.5,8.93576367]
[1732970489654,32.9945,3669.6,3669.5,7.99500411]
[1732970489964,32.9945,3669.6,3669.5,8.38576367]
[1732970490257,32.9945,3669.6,3669.5,8.30411956]
[1732970493559,35.2145,3669.6,3669.5,7.44499505]
[1732970493851,35.2145,3669.6,3669.5,7.99499505]
[1732970494650,32.4894,3669.6,3669.5,8.26739505]
[1732970494809,29.51175,3669.6,3669.5,8.26739505]
[1732970495214,28.1492,3669.6,3669.5,8.26739505]
[1732970495437,21.87279329,3669.6,3669.5,8.26739505]
[1732970496613,22.98279329,3669.6,3669.5,8.26739505]
[1732970497112,21.62024329,3669.6,3669.5,8.26739505]
[1732970497522,14.76930931,3669.6,3669.5,8.6203602]
[1732970497720,14.70790041,3669.6,3669.5,8.6203602]
[1732970498369,15.81790041,3669.6,3669.5,8.6203602]
[1732970499976,16.92790041,3669.6,3669.5,8.6203602]
[1732970500323,8.75260041,3669.6,3669.5,8.26739505]
[1732970500675,8.73111852,3669.6,3669.5,8.26739505]
[1732970501772,9.84111852,3669.6,3669.5,8.26739505]
[1732970503484,10.95111852,3669.6,3669.5,8.26739505]
[1732970505164,12.06111852,3669.6,3669.5,8.26739505]
[1732970506998,13.17111852,3669.6,3669.5,8.26739505]
[1732970508683,14.28111852,3669.6,3669.5,8.26739505]
[1732970510629,15.39111852,3669.6,3669.5,8.26739505]
[1732970512231,16.50111852,3669.6,3669.5,8.26739505]
[1732970512921,16.50111852,3669.6,3669.5,10.14839227]
[1732970514132,17.61111852,3669.6,3669.5,10.14839227]
[1732970515699,18.72111852,3669.6,3669.5,10.14839227]
[1732970517586,19.83111852,3669.6,3669.5,10.14839227]
[1732970517843,18.12291852,3669.6,3669.5,8.61019227]
[1732970519213,19.23291852,3669.6,3669.5,8.61019227]
[1732970520931,20.34291852,3669.6,3669.5,8.61019227]
[1732970522536,21.45291852,3669.6,3669.5,8.61019227]
[1732970524346,22.56291852,3669.6,3669.5,8.61019227]
[1732970525850,23.67291852,3669.6,3669.5,8.61019227]
[1732970527707,24.78291852,3669.6,3669.5,8.61019227]
[1732970529356,25.89291852,3669.6,3669.5,8.61019227]
[1732970530361,25.89291852,3669.6,3669.5,7.11969366]
[1732970530930,27.00291852,3669.6,3669.5,8.06019227]
[1732970531657,27.00291852,3669.6,3669.5,3.17919505]
[1732970531855,31.26905399,3669.6,3669.5,3.09756]
[1732970532589,32.37905399,3669.6,3669.5,3.09756]
[1732970533685,32.37905399,3669.6,3669.5,6.09756]
[1732970534328,33.48905399,3669.6,3669.5,6.09756]
[1732970534529,0.94049861,3670.5,3669.7,0.1]
[1732970534733,2.996943,3670.4,3669.6,3.0]
[1732970534970,2.996943,3670.4,3669.8,0.08146718]
[1732970535270,2.996943,3670.4,3669.9,0.08144238]
[1732970535485,2.996943,3670.4,3669.7,0.2724]
[1732970535775,0.39374416,3670.3,3670.0,0.08134297]
[1732970535981,0.39374416,3670.3,3669.7,0.2724]
[1732970536184,0.39374416,3670.3,3670.1,0.08130289]
[1732970536353,0.39374416,3670.3,3669.7,0.2724]
[1732970536542,0.39374416,3670.3,3670.2,0.08128963]
[1732970536740,0.39374416,3670.3,3669.7,0.2724]
[1732970537060,0.31182442,3670.2,3669.7,0.2724]
[1732970537585,1.6618,3670.1,3669.7,0.2724]
[1732970538892,1.6618,3670.1,3669.7,3.0]
[1732970539357,1.11,3670.1,3669.7,3.0]
[1732970539559,1.6618,3670.0,3669.7,3.0]
[1732970539757,1.6618,3669.8,3669.7,3.0]
[1732970539980,1.6618,3669.8,3669.7,2.72501]
[1732970540178,1.6618,3669.8,3669.7,5.72501]
[1732970540939,2.7718,3669.8,3669.7,5.72501]
[1732970541339,2.6998,3669.8,3669.7,5.72501]
[1732970542551,3.8098,3669.8,3669.7,5.72501]
[1732970543692,3.8098,3669.8,3669.7,5.90384591]
[1732970543916,2.22,3669.8,3669.7,6.98208322]
[1732970544195,3.33,3669.8,3669.7,6.98208322]
[1732970545007,3.33,3669.8,3669.7,7.25448322]
[1732970546089,4.44,3669.8,3669.7,7.25448322]
[1732970546401,4.44,3669.8,3669.7,6.17624591]
[1732970547760,5.55,3669.8,3669.7,6.17624591]
[1732970549376,6.66,3669.8,3669.7,6.17624591]
[1732970551066,7.77,3669.8,3669.7,6.17624591]
[1732970552825,7.77,3669.8,3669.7,5.80384591]
[1732970552826,10.4634,3669.8,3669.7,5.80384591]
[1732970553024,11.3514,3669.8,3669.7,2.80384591]
[1732970554725,11.3514,3669.8,3669.7,0.07883591]
[1732970554726,12.4614,3669.8,3669.7,0.07883591]
[1732970555378,1.6408,3669.7,3669.4,5.72523]
[1732970555574,1.25188,3669.6,3669.4,3.0]
[1732970555779,2.89268,3669.6,3669.5,5.72516]
[1732970556031,1.6408,3669.6,3669.5,5.72516]
[1732970556221,2.7508,3669.6,3669.5,5.72516]
[1732970558219,3.8608,3669.6,3669.5,5.72516]
[1732970558377,3.8608,3669.6,3669.5,5.82516]
[1732970558582,3.8608,3669.6,3669.5,5.90423108]
[1732970559716,4.9708,3669.6,3669.5,5.90423108]
[1732970561444,6.0808,3669.6,3669.5,5.90423108]
[1732970562545,6.0808,3669.6,3669.5,5.80423108]
[1732970562746,7.68788,3669.6,3669.5,0.07907108]
[1732970562953,1.6408,3669.5,3669.1,2.72544]
[1732970563246,1.6408,3669.5,3669.0,2.72553]
[1732970563453,1.6408,3669.5,3669.2,0.07650696]
[1732970563605,1.6408,3669.5,3669.1,0.07668587]
[1732970563803,2.520588,3669.4,3669.3,0.07661539]
[1732970564005,1.6408,3669.3,3669.2,0.07655934]
[1732970564206,1.6408,3669.3,3668.7,2.72574]
[1732970564207,1.6408,3669.3,3668.8,2.72563]
[1732970564521,1.6408,3669.3,3668.8,2.72566]
[1732970564724,1.11,3669.3,3668.8,2.72566]
[1732970565035,1.8397788,3669.2,3668.8,2.72566]
[1732970565603,1.8397788,3669.2,3668.6,2.72578]
[1732970565802,1.8397788,3669.2,3668.7,2.72572]
[1732970566214,1.8397788,3669.2,3668.8,2.72566]
[1732970566415,1.3089788,3669.2,3668.8,2.72566]
[1732970566616,1.97067668,3669.1,3668.7,2.72572]
[1732970566830,1.97067668,3669.1,3668.8,2.72568]
[1732970568149,3.08067668,3669.1,3668.8,2.72568]
[1732970568633,1.6408,3669.0,3668.9,2.72561]
[1732970568835,2.19076555,3669.0,3668.9,2.72561]
[1732970569148,1.6408,3669.0,3668.9,2.72561]
[1732970569715,2.7508,3669.0,3668.9,2.72561]
[1732970570206,1.11,3669.0,3668.9,6.66610861]
[1732970570338,1.11,3669.0,3668.9,6.93850861]
[1732970571431,2.22,3669.0,3668.9,6.93850861]
[1732970571618,2.22,3669.0,3668.9,8.06903347]
[1732970572917,2.22,3669.0,3668.9,9.55000596]
[1732970573260,3.33,3669.0,3668.9,9.55000596]
[1732970573618,3.33,3669.0,3668.9,9.62699793]
[1732970574647,1.96723,3669.0,3668.9,9.62699793]
[1732970574855,1.11,3669.2,3669.0,7.63223]
[1732970575062,1.11,3669.2,3669.1,7.42398179]
[1732970575233,1.11,3669.2,3669.1,7.50090327]
[1732970576565,2.22,3669.2,3669.1,7.50090327]
[1732970578197,3.33,3669.2,3669.1,7.50090327]
[1732970578963,1.96731,3669.2,3669.1,7.50090327]
[1732970579208,1e-05,3669.2,3669.1,9.03520327]
[1732970579911,1.11001,3669.2,3669.1,9.03520327]
[1732970581523,2.22001,3669.2,3669.1,9.57640372]
[1732970582213,0.85732,3669.2,3669.1,9.57640372]
[1732970582568,1e-05,3669.3,3669.2,6.09778]
[1732970582772,1e-05,3669.3,3669.2,8.01819003]
[1732970582967,1e-05,3669.3,3669.2,8.44774627]
[1732970583212,9.99,3669.8,3669.5,6.09756]
[1732970583581,9.99,3669.8,3669.5,8.18271213]
[1732970583920,9.99,3669.8,3669.5,8.2591975]
[1732970584072,9.99,3669.8,3669.5,9.38972236]
[1732970585016,6.66,3669.6,3669.5,9.38972236]
[1732970586607,7.77,3669.6,3669.5,7.30457023]
[1732970588237,8.88,3669.6,3669.5,7.30457023]
[1732970589622,8.88,3669.6,3669.5,6.17404537]
[1732970589830,9.99,3669.6,3669.5,6.17404537]
[1732970590540,9.99,3669.6,3669.5,5.90164537]
[1732970591390,11.1,3669.6,3669.5,6.17404537]
[1732970593143,12.21,3669.6,3669.5,6.17404537]
[1732970594840,13.32,3669.6,3669.5,7.11488927]
[1732970596415,14.43,3669.6,3669.5,7.11488927]
[1732970598160,15.54,3669.6,3669.5,7.11488927]
[1732970599856,16.65,3669.6,3669.5,7.11488927]
[1732970601383,17.76,3669.6,3669.5,7.11488927]
[1732970601677,22.03383547,3669.6,3669.5,3.17404537]
[1732970602941,23.14383547,3669.6,3669.5,5.90164537]
[1732970604095,17.50745,3669.6,3669.5,8.44498927]
[1732970604387,5.2445,3669.6,3669.5,8.80130824]
[1732970604671,6.3545,3669.6,3669.5,8.80130824]
[1732970604861,6.3545,3669.6,3669.5,10.08334497]
[1732970605774,6.3545,3669.6,3669.5,10.62542498]
[1732970606335,7.4645,3669.6,3669.5,10.62542498]
[1732970606674,7.4645,3669.6,3669.5,9.32826211]
[1732970606880,7.4645,3669.6,3669.5,10.26910601]
[1732970607980,8.5745,3669.6,3669.5,10.26910601]
[1732970608541,8.5745,3669.6,3669.5,9.32826211]
[1732970609183,8.5745,3669.6,3669.5,10.26910601]
[1732970609677,9.6845,3669.6,3669.5,10.26910601]
[1732970609873,6.9594,3669.6,3669.5,10.26910601]
[1732970611286,8.0694,3669.6,3669.5,10.26910601]
[1732970612972,9.1794,3669.6,3669.5,10.26910601]
[1732970614681,10.2894,3669.6,3669.5,10.26910601]
[1732970616510,11.3994,3669.6,3669.5,10.26910601]
[1732970617875,11.3994,3669.6,3669.5,10.54150601]
[1732970618063,12.5094,3669.6,3669.5,10.54150601]
[1732970618268,12.5094,3669.6,3669.5,8.93900601]
[1732970619999,13.6194,3669.6,3669.5,8.93900601]
[1732970621571,14.7294,3669.6,3669.5,8.93900601]
[1732970621768,14.7294,3669.6,3669.5,7.65696928]
[1732970623229,15.8394,3669.6,3669.5,7.65696928]
[1732970624976,16.9494,3669.6,3669.5,7.65696928]
[1732970625522,16.9494,3669.6,3669.5,6.71612538]
[1732970625712,18.5264,3669.6,3669.5,7.65696928]
[1732970626785,19.6364,3669.6,3669.5,7.65696928]
[1732970627210,19.6364,3669.6,3669.5,6.71612538]
[1732970627379,19.6364,3669.6,3669.5,7.65696928]
[1732970628434,20.7464,3669.6,3669.5,7.65696928]
[1732970629025,20.7464,3669.6,3669.5,7.11488927]
[1732970630087,21.8564,3669.6,3669.5,7.11488927]
[1732970630611,24.58223547,3669.6,3669.5,7.11488927]
[1732970631712,25.69223547,3669.6,3669.5,7.11488927]
[1732970633522,26.80223547,3669.6,3669.5,7.11488927]
[1732970634995,27.91223547,3669.6,3669.5,7.11488927]
[1732970636619,29.02223547,3669.6,3669.5,7.11488927]
[1732970637641,26.2964,3669.6,3669.5,7.11488927]
[1732970638351,27.4064,3669.6,3669.5,7.11488927]
[1732970640255,28.5164,3669.6,3669.5,7.11488927]
[1732970641968,29.6264,3669.6,3669.5,7.11488927]
[1732970643144,29.6264,3669.6,3669.5,4.11488927]
[1732970643563,30.7364,3669.6,3669.5,4.11488927]
[1732970644379,29.1594,3669.6,3669.5,10.2435471]
[1732970645342,30.2694,3669.6,3669.5,10.2435471]
[1732970645540,30.2694,3669.6,3669.5,9.3027032]
[1732970646562,30.2694,3669.6,3669.5,7.11488927]
[1732970647044,31.3794,3669.6,3669.5,7.11488927]
[1732970648544,32.4894,3669.6,3669.5,7.11488927]
[1732970648743,34.1371,3669.6,3669.5,2.80164537]
[1732970649172,36.86293547,3669.6,3669.5,2.80164537]
[1732970650102,37.97293547,3669.6,3669.5,2.80164537]
[1732970650805,35.2471,3669.6,3669.5,2.80164537]
[1732970651779,36.3571,3669.6,3669.5,2.80164537]
[1732970653366,37.4671,3669.6,3669.5,2.80164537]
[1732970653862,35.8194,3669.6,3669.5,2.80164537]
[1732970654871,35.8194,3669.6,3669.5,3.07404537]
[1732970655070,36.9294,3669.6,3669.5,3.07404537]
[1732970656578,38.0394,3669.6,3669.5,3.07404537]
[1732970658314,39.1494,3669.6,3669.5,3.07404537]
[1732970659879,40.2594,3669.6,3669.5,3.07404537]
[1732970660823,44.54023547,3669.6,3669.5,3.07404537]
[1732970661623,45.65023547,3669.6,3669.5,2.99756]
[1732970662924,45.65023547,3669.6,3669.5,3.06672099]
[1732970663131,46.76023547,3669.6,3669.5,3.06672099]
[1732970664960,47.87023547,3669.6,3669.5,3.06672099]
[1732970665091,47.87023547,3669.6,3669.5,2.79432099]
[1732970666095,47.87023547,3669.6,3669.5,2.72516]
[1732970666524,47.87023547,3669.6,3669.5,2.79183404]
[1732970666846,48.98023547,3669.6,3669.5,2.79183404]
[1732970667494,48.98023547,3669.6,3669.5,2.72516]
[1732970667689,48.98023547,3669.6,3669.1,0.3724]
[1732970667933,2.72583547,3669.5,3669.4,2.72522]
[1732970668350,3.83583547,3669.5,3669.4,2.72522]
[1732970669636,5.39083547,3669.5,3669.4,2.79193445]
[1732970669845,6.50083547,3669.5,3669.4,2.72522]
[1732970670158,6.50083547,3669.5,3669.1,0.3724]
[1732970670159,6.50083547,3669.5,3669.3,2.72531]
[1732970670470,4.08687294,3669.4,3668.9,2.99798]
[1732970670670,4.08687294,3669.4,3669.3,2.72531]
[1732970671656,5.19687294,3669.4,3669.3,2.72531]
[1732970673369,6.30687294,3669.4,3669.3,2.72531]
[1732970674940,7.41687294,3669.4,3669.3,2.72531]
[1732970676774,8.52687294,3669.4,3669.3,2.72531]
[1732970678477,9.63687294,3669.4,3669.3,2.72531]
[1732970680171,10.74687294,3669.4,3669.3,2.72531]
[1732970681745,11.85687294,3669.4,3669.3,2.72531]
[1732970683649,12.96687294,3669.4,3669.3,2.72531]
[1732970685681,14.07687294,3669.4,3669.3,2.72531]
[1732970687244,15.18687294,3669.4,3669.3,2.72531]
[1732970687481,11.1,3669.4,3669.3,2.72531]
[1732970688983,12.21,3669.4,3669.3,2.72531]
[1732970690732,13.32,3669.4,3669.3,2.72531]
[1732970692788,15.9814,3669.4,3669.3,2.72531]
[1732970694416,17.0914,3669.4,3669.3,2.72531]
[1732970694590,19.81723547,3669.4,3669.3,2.72531]
[1732970695249,18.26583547,3669.4,3669.3,2.72531]
[1732970695449,15.54,3669.4,3669.3,2.72531]
[1732970696075,16.65,3669.4,3669.3,2.72531]
[1732970698141,17.76,3669.4,3669.3,2.72531]
[1732970698672,17.76,3669.4,3669.3,3.6661539]
[1732970698852,17.76,3669.4,3669.3,8.3012539]
[1732970699053,17.76,3669.4,3669.3,9.72115156]
[1732970699371,17.76,3669.4,3669.3,9.78717052]
[1732970699755,18.87,3669.4,3669.3,9.78717052]
[1732970700892,18.87,3669.4,3669.3,8.84632662]
[1732970701068,18.87,3669.4,3669.3,9.78717052]
[1732970701597,19.98,3669.4,3669.3,9.78717052]
[1732970701740,19.98,3669.4,3669.3,8.63967286]
[1732970701953,19.98,3669.4,3669.3,9.18121369]
[1732970702159,19.98,3669.4,3669.3,7.54611369]
[1732970702572,19.98,3669.4,3669.3,3.06372896]
[1732970703007,19.98,3669.4,3669.3,2.99771]
[1732970703156,19.98,3669.4,3669.3,3.0639472]
[1732970703157,21.09,3669.4,3669.3,3.0639472]
[1732970705010,22.2,3669.4,3669.3,3.0639472]
[1732970706713,23.31,3669.4,3669.3,3.0639472]
[1732970708310,24.42,3669.4,3669.3,3.0639472]
[1732970710286,25.53,3669.4,3669.3,3.0639472]
[1732970711778,26.64,3669.4,3669.3,3.0639472]
[1732970713478,27.75,3669.4,3669.3,3.0639472]
[1732970713923,27.75,3669.4,3669.3,2.99771]
[1732970715520,28.86,3669.4,3669.3,2.99771]
[1732970715721,28.86,3669.4,3669.3,8.45032139]
[1732970716222,28.86,3669.4,3669.3,8.51660002]
[1732970717044,23.15701,3669.4,3669.3,10.36134622]
[1732970717343,16.34403,3669.4,3669.3,10.00744392]
[1732970717527,16.34403,3669.4,3669.3,9.06660002]
[1732970717731,16.34403,3669.4,3669.3,10.00744392]
[1732970718330,9.53113,3669.4,3669.3,10.00744392]
[1732970718750,10.64113,3669.4,3669.3,10.00744392]
[1732970719249,9.27855,3669.4,3669.3,10.00744392]
[1732970719708,6.55331,3669.4,3669.3,10.00744392]
[1732970719908,5.169332,3669.4,3669.3,9.06660002]
[1732970720109,5.169332,3669.4,3669.3,10.00744392]
[1732970720310,6.279332,3669.4,3669.3,9.45744392]
[1732970720530,3.554092,3669.4,3669.3,10.39828782]
[1732970721046,1.686302,3669.5,3669.4,6.54764]
[1732970721351,0.323722,3669.5,3669.4,10.1988828]
[1732970721547,2e-06,3669.5,3669.4,10.1988828]
[1732970721963,1.110002,3669.5,3669.4,10.1988828]
[1732970722249,41.721752,3669.6,3669.5,8.16026]
[1732970722411,37.60687054,3669.6,3669.5,10.10804339]
[1732970722612,15.54,3669.6,3669.5,11.1783881]
[1732970722951,1.11,3670.1,3670.0,61.92556946]
[1732970723147,1.11,3670.1,3670.0,62.86641336]
[1732970723303,1.11,3670.1,3670.0,62.9323328]
[1732970723508,1.11,3670.1,3670.0,60.8696328]
[1732970725224,2.22,3670.1,3670.0,62.74204477]
[1732970727562,3.33,3670.1,3670.0,62.74204477]
[1732970729255,4.44,3670.1,3670.0,62.74204477]
[1732970729961,4.44,3670.1,3670.0,63.27850879]
[1732970730866,5.55,3670.1,3670.0,63.27850879]
[1732970734177,7.76736038,3670.1,3670.0,65.19401109]
[1732970735081,6.40500038,3670.1,3670.0,65.74401109]
[1732970735578,1.5498,3671.2,3670.3,0.3724]
[1732970735729,0.1578945,3671.8,3671.6,2.72359]
[1732970735730,1.5498,3671.7,3671.6,2.72359]
[1732970736274,0.1578945,3671.8,3671.7,4.31723]
[1732970736472,0.1578945,3671.8,3671.7,8.69518748]
[1732970736688,0.1578945,3671.8,3671.7,7.75434358]
[1732970737005,0.1578945,3671.8,3671.7,8.69518748]
[1732970737209,0.1578945,3671.8,3671.7,9.63603138]
[1732970737210,1.2678945,3671.8,3671.7,9.63603138]
[1732970737358,1.2678945,3671.8,3671.7,10.72417606]
[1732970738272,1.2678945,3671.8,3671.7,9.78333216]
[1732970738485,1.2678945,3671.8,3671.7,9.23333216]
[1732970738877,2.3778945,3671.8,3671.7,8.29248826]
[1732970739087,2.3778945,3671.8,3671.7,7.10148748]
[1732970739412,2.61568395,3671.8,3671.7,3.06064358]
[1732970739555,2.3778945,3671.8,3671.7,2.78824358]
[1732970740659,2.3778945,3671.8,3671.7,5.78824358]
[1732970740660,3.4878945,3671.8,3671.7,5.78824358]
[1732970742396,4.5978945,3671.8,3671.7,5.78824358]
[1732970743420,4.5978945,3671.8,3671.7,7.30364358]
[1732970743596,4.5978945,3671.8,3671.7,7.57604358]
[1732970743893,4.5978945,3671.8,3671.7,5.78824358]
[1732970744096,5.7078945,3671.8,3671.7,6.72908748]
[1732970744562,5.7078945,3671.8,3671.7,6.82908748]
[1732970745879,6.8178945,3671.8,3671.7,6.82908748]
[1732970747476,7.9278945,3671.8,3671.7,6.82908748]
[1732970749226,9.0378945,3671.8,3671.7,7.76993138]
[1732970749376,9.0378945,3671.8,3671.7,10.22162885]
[1732970749577,9.0378945,3671.8,3671.7,10.49402885]
[1732970750510,9.0378945,3671.8,3671.7,10.80691067]
[1732970751006,7.4244345,3671.8,3671.7,10.80691067]
[1732970751212,3.3392445,3671.8,3671.7,10.80691067]
[1732970751374,0.6157845,3671.8,3671.7,10.80691067]
[1732970751580,4.5e-06,3671.8,3671.7,10.80691067]
[1732970752567,1.5215,3673.0,3672.9,3.6634839]
[1732970752963,1.5215,3673.0,3672.9,2.78656162]
[1732970754019,2.6315,3673.0,3672.9,2.78656162]
[1732970754514,1.11,3673.0,3672.9,2.78656162]
[1732970755583,2.22,3673.0,3672.9,2.78656162]
[1732970756714,2.22,3673.0,3672.9,5.88656162]
[1732970757034,2.22,3673.0,3672.9,6.05896162]
[1732970757198,3.33,3673.0,3672.9,5.78656162]